bitfinex/quotes_SOLUSD_20241028
["timestamp","ask_amount","ask_price","bid_price","bid_amount"]
[1730090141846,14.23103505,174.16,174.08,16.0439361]
[1730090141847,38.00791905,174.17,174.12,19.97413505]
[1730090142351,23.776884,174.15,174.12,5.7431]
[1730090143743,14.23103505,174.19,174.14,14.23103505]
[1730090143950,23.776884,174.18,174.14,14.23103505]
[1730090144156,14.23103505,174.19,174.14,14.23103505]
[1730090144951,14.23103505,174.2,174.15,14.23103505]
[1730090145260,14.23103505,174.21,174.16,14.23103505]
[1730090145431,30.47673505,174.22,174.16,14.23103505]
[1730090145836,14.23103505,174.21,174.17,5.7415]
[1730090146744,23.776884,174.2,174.17,5.7415]
[1730090147435,23.776884,174.21,174.17,5.7415]
[1730090149858,23.776884,174.21,174.18,14.23103505]
[1730090150059,23.776884,174.22,174.18,14.23103505]
[1730090152564,23.776884,174.23,174.19,5.7408]
[1730090153264,38.00791905,174.23,174.19,5.7408]
[1730090154140,38.00791905,174.23,174.18,14.23103505]
[1730090155764,38.00791905,174.23,174.19,5.7408]
[1730090156245,23.776884,174.23,174.19,19.97183505]
[1730090157269,23.776884,174.23,174.19,14.23103505]
[1730090158850,5.7378,174.28,174.22,14.23103505]
[1730090159074,19.96883505,174.28,174.23,14.23103505]
[1730090159254,4.23440001,174.27,174.23,14.23103505]
[1730090159459,14.23103505,174.27,174.21,14.23103505]
[1730090159861,28.3085,174.29,174.22,14.23103505]
[1730090160170,23.776884,174.26,174.22,14.23103505]
[1730090160668,23.776884,174.26,174.23,14.23103505]
[1730090160876,6.0337,174.29,174.24,14.23103505]
[1730090161166,4.23582821,174.28,174.24,14.23103505]
[1730090161373,22.5709,174.33,174.27,14.23103505]
[1730090161548,4.23763975,174.32,174.28,14.23103505]
[1730090161745,4.23763975,174.31,174.29,5.7375]
[1730090161966,36.80193505,174.33,174.29,5.7375]
[1730090162150,4.23769819,174.32,174.29,5.7375]
[1730090162350,4.23769819,174.31,174.28,5.7378]
[1730090162870,24.23769819,174.31,174.28,5.7378]
[1730090163056,4.23769819,174.3,174.28,5.7378]
[1730090163579,38.00791905,174.29,174.24,14.23103505]
[1730090164655,38.00791905,174.29,174.24,19.96993505]
[1730090165154,23.776884,174.29,174.25,14.23103505]
[1730090165356,23.776884,174.27,174.25,14.23103505]
[1730090165753,23.776884,174.32,174.26,14.23103505]
[1730090166069,23.776884,174.3,174.28,14.23103505]
[1730090166877,23.776884,174.3,174.27,14.23103505]
[1730090167474,23.776884,174.31,174.27,14.23103505]
[1730090167666,4.24388874,174.3,174.27,14.23103505]
[1730090167975,23.776884,174.31,174.27,14.23103505]
[1730090168174,4.24341772,174.3,174.27,14.23103505]
[1730090168374,23.776884,174.31,174.27,14.23103505]
[1730090168575,4.24316892,174.3,174.27,14.23103505]
[1730090168776,43.776884,174.25,174.15,16.5565]
[1730090168954,14.23103505,174.21,174.16,14.23103505]
[1730090169278,23.776884,174.21,174.17,14.23103505]
[1730090169661,23.776884,174.22,174.17,14.23103505]
[1730090169871,38.00791905,174.22,174.17,14.23103505]
[1730090170179,38.00791905,174.22,174.17,19.97233505]
[1730090171053,4.23907377,174.21,174.17,19.97233505]
[1730090171280,38.00791905,174.22,174.17,19.97233505]
[1730090171577,4.23994604,174.21,174.17,19.97233505]
[1730090171883,4.23974053,174.2,174.17,5.7413]
[1730090172052,38.00791905,174.22,174.16,19.97283505]
[1730090172255,4.24043589,174.21,174.17,14.23103505]
[1730090172476,20.0,174.17,174.1,14.23103505]
[1730090172771,23.776884,174.17,174.14,14.23103505]
[1730090173075,23.776884,174.17,174.13,14.23103505]
[1730090173787,23.776884,174.17,174.12,14.23103505]
[1730090173963,23.776884,174.17,174.12,19.97413505]
[1730090175575,23.776884,174.17,174.13,14.23103505]
[1730090177286,39.97223505,174.18,174.13,19.97373505]
[1730090177790,39.97223505,174.18,174.13,5.7427]
[1730090179767,14.23103505,174.17,174.13,5.7427]
[1730090181189,14.23103505,174.17,174.12,19.97413505]
[1730090181387,14.23103505,174.14,174.09,5.7438]
[1730090183070,19.97353505,174.14,174.09,5.7438]
[1730090183378,19.97353505,174.14,174.09,19.97483505]
[1730090184408,14.23103505,174.14,174.09,19.97483505]
[1730090186190,19.97363505,174.14,174.09,19.97483505]
[1730090191000,5.7426,174.14,174.1,19.97473505]
[1730090191171,19.97363505,174.14,174.1,5.7437]
[1730090192497,14.87623338,174.14,174.09,9.13363338]
[1730090192691,14.87623338,174.14,174.09,14.87773338]
[1730090193705,5.7426,174.14,174.1,9.13363338]
[1730090194398,14.87623338,174.14,174.09,14.87773338]
[1730090195677,9.13363338,174.13,174.09,5.7441]
[1730090196873,9.13363338,174.13,174.09,14.87773338]
[1730090197079,9.13363338,174.14,174.09,14.87773338]
[1730090198497,14.87633338,174.14,174.09,14.87773338]
[1730090199283,9.13363338,174.15,174.1,9.13363338]
[1730090199483,5.7422,174.15,174.11,9.13363338]
[1730090201197,14.87583338,174.15,174.1,14.87743338]
[1730090201500,9.13363338,174.14,174.1,5.7438]
[1730090202203,14.87583338,174.15,174.1,9.13363338]
[1730090204499,14.87583338,174.15,174.1,14.87733338]
[1730090205519,9.13363338,174.14,174.09,14.87773338]
[1730090206518,20.0,174.18,174.09,14.87773338]
[1730090206519,22.8678,174.19,174.13,9.13363338]
[1730090206688,9.13363338,174.2,174.15,9.13363338]
[1730090207010,14.87413338,174.2,174.15,9.13363338]
[1730090207993,23.776884,174.19,174.15,9.13363338]
[1730090208820,23.776884,174.19,174.15,14.87573338]
[1730090209312,5.7405,174.2,174.16,9.13363338]
[1730090209620,38.65051738,174.22,174.17,9.13363338]
[1730090209798,9.13363338,174.21,174.16,9.13363338]
[1730090210115,14.87403338,174.21,174.16,14.87533338]
[1730090211596,9.13363338,174.2,174.15,9.13363338]
[1730090212896,14.87403338,174.21,174.16,14.87543338]
[1730090213417,4.23431639,174.2,174.16,14.87543338]
[1730090213602,14.87403338,174.21,174.16,14.87543338]
[1730090213801,4.23467345,174.2,174.16,14.87543338]
[1730090214017,14.87403338,174.21,174.16,14.87543338]
[1730090214318,4.23467377,174.2,174.16,14.87543338]
[1730090214520,4.23467377,174.19,174.16,14.87543338]
[1730090214697,14.87403338,174.21,174.16,14.87543338]
[1730090215021,4.24022635,174.2,174.16,14.87543338]
[1730090215196,4.24022635,174.19,174.16,14.87543338]
[1730090215397,4.2419996,174.18,174.16,14.87543338]
[1730090215597,14.87403338,174.21,174.16,14.87543338]
[1730090215799,4.24192064,174.2,174.16,14.87543338]
[1730090216099,4.24192064,174.19,174.16,14.87543338]
[1730090216298,4.24192064,174.18,174.16,14.87543338]
[1730090216499,14.87403338,174.21,174.16,14.87543338]
[1730090216713,4.24377929,174.2,174.16,14.87543338]
[1730090216916,23.776884,174.22,174.16,14.87543338]
[1730090217225,29.13363338,174.21,174.16,14.87543338]
[1730090218313,34.87393338,174.21,174.16,9.13363338]
[1730090218628,9.13363338,174.2,174.15,9.13363338]
[1730090219405,9.13363338,174.2,174.16,5.7418]
[1730090220411,14.87413338,174.2,174.16,5.7418]
[1730090220719,14.87413338,174.2,174.15,9.13363338]
[1730090220924,9.13363338,174.16,174.11,14.87703338]
[1730090221114,9.13363338,174.14,174.11,5.7434]
[1730090221616,23.776884,174.16,174.12,9.13363338]
[1730090221822,23.776884,174.16,174.11,14.87703338]
[1730090222327,32.91051738,174.16,174.11,14.87703338]
[1730090222626,38.65241738,174.16,174.11,9.13363338]
[1730090225522,38.65241738,174.16,174.11,5.7434]
[1730090227522,38.65241738,174.16,174.11,9.13363338]
[1730090228020,38.65241738,174.16,174.08,0.5966361]
[1730090228205,38.65241738,174.16,174.11,9.13363338]
[1730090229730,38.65241738,174.16,174.11,14.87673338]
[1730090230728,38.65241738,174.16,174.11,9.13363338]
[1730090231110,9.13363338,174.14,174.08,0.5966361]
[1730090231310,9.13363338,174.14,174.08,9.73026948]
[1730090231516,9.13363338,174.15,174.1,9.13363338]
[1730090231716,23.776884,174.14,174.1,9.13363338]
[1730090231919,5.7419,174.16,174.11,9.13363338]
[1730090232109,14.87553338,174.16,174.11,9.13363338]
[1730090233829,9.13363338,174.14,174.09,14.87773338]
[1730090234130,9.13363338,174.13,174.09,5.7441]
[1730090235637,9.13363338,174.1,174.08,0.5966361]
[1730090235811,9.13363338,174.09,174.08,0.5966361]
[1730090237228,9.13363338,174.1,174.08,0.5966361]
[1730090241141,9.13363338,174.11,174.08,0.5966361]
[1730090241449,9.13363338,174.1,174.08,0.5966361]
[1730090242238,9.13363338,174.11,174.08,0.5966361]
[1730090242717,38.65391738,174.12,174.08,0.5966361]
[1730090243941,9.13363338,174.11,174.08,0.5966361]
[1730090244121,23.776884,174.1,174.08,0.5966361]
[1730090245743,9.13363338,174.11,174.08,0.5966361]
[1730090246733,9.13363338,174.12,174.08,0.5966361]
[1730090246943,23.776884,174.11,174.08,0.5966361]
[1730090247828,23.776884,174.14,174.09,9.13363338]
[1730090248135,14.87583338,174.15,174.1,9.13363338]
[1730090248835,9.13363338,174.16,174.11,9.13363338]
[1730090249047,6.4617,174.19,174.15,9.13363338]
[1730090249211,6.4617,174.19,174.09,5.7441]
[1730090249212,9.13363338,174.21,174.16,9.13363338]
[1730090250044,9.13363338,174.22,174.17,9.13363338]
[1730090250224,9.13363338,174.23,174.18,9.13363338]
[1730090250430,21.50463338,174.24,174.19,9.13363338]
[1730090250830,9.13363338,174.23,174.18,9.13363338]
[1730090251031,9.13363338,174.23,174.18,14.87453338]
[1730090251352,9.13363338,174.21,174.18,5.7409]
[1730090252150,9.13363338,174.21,174.16,9.13363338]
[1730090252327,9.13363338,174.21,174.17,5.7415]
[1730090255527,23.776884,174.21,174.17,14.87513338]
[1730090255750,32.91051738,174.22,174.17,14.87513338]
[1730090256643,32.91051738,174.22,174.17,9.13363338]
[1730090257135,20.0,174.24,174.19,9.13363338]
[1730090257340,35.5107798,174.25,174.21,9.13363338]
[1730090257341,13.7865798,174.25,174.21,9.13363338]
[1730090257545,24.64453338,174.29,174.24,9.13363338]
[1730090257854,9.13363338,174.31,174.26,9.13363338]
[1730090258024,11.9147,174.32,174.16,43.976884]
[1730090258025,21.04833338,174.32,174.27,9.13363338]
[1730090258529,14.87053338,174.31,174.26,14.87203338]
[1730090259747,23.776884,174.3,174.26,14.87203338]
[1730090260958,23.776884,174.35,174.27,9.13363338]
[1730090261138,23.776884,174.31,174.27,9.13363338]
[1730090261339,9.13363338,174.32,174.27,9.13363338]
[1730090261753,14.87023338,174.32,174.27,14.87173338]
[1730090261949,22.2918,174.37,174.27,14.87173338]
[1730090262135,9.13363338,174.32,174.27,14.87173338]
[1730090264640,22.1918,174.37,174.28,9.13363338]
[1730090264842,19.85646648,174.38,174.33,9.13363338]
[1730090265031,13.77734611,174.38,174.34,9.13363338]
[1730090266659,13.77734611,174.38,174.35,9.13363338]
[1730090268460,13.77734611,174.38,174.36,9.13363338]
[1730090268660,13.77734611,174.38,174.35,9.13363338]
[1730090269157,13.77734611,174.38,174.34,9.13363338]
[1730090270161,20.0,174.39,174.35,9.13363338]
[1730090271368,29.13363338,174.39,174.34,9.13363338]
[1730090274559,20.0,174.39,174.35,9.13363338]
[1730090276669,29.13363338,174.39,174.34,9.13363338]
[1730090277668,34.86783338,174.39,174.34,9.13363338]
[1730090278675,9.13363338,174.38,174.33,9.13363338]
[1730090279751,14.86823338,174.38,174.33,9.13363338]
[1730090280052,14.86823338,174.38,174.25,22.0743]
[1730090280053,9.13363338,174.34,174.25,22.0743]
[1730090280258,9.13363338,174.33,174.28,9.13363338]
[1730090280458,9.13363338,174.32,174.27,9.13363338]
[1730090280775,23.776884,174.37,174.25,22.0743]
[1730090280776,9.13363338,174.33,174.28,9.13363338]
[1730090281075,5.7365,174.32,174.28,9.13363338]
[1730090281261,14.87013338,174.32,174.27,9.13363338]
[1730090282857,5.7365,174.32,174.28,9.13363338]
[1730090284571,9.13363338,174.33,174.28,9.13363338]
[1730090284756,49.512084,174.36,174.3,9.13363338]
[1730090284965,58.64571738,174.36,174.3,9.13363338]
[1730090285159,38.64571738,174.36,174.3,9.13363338]
[1730090285863,9.13363338,174.35,174.3,9.13363338]
[1730090286574,9.13363338,174.34,174.29,9.13363338]
[1730090288960,14.86973338,174.34,174.29,9.13363338]
[1730090289575,9.13363338,174.32,174.25,15.891]
[1730090289872,9.13363338,174.32,174.27,9.13363338]
[1730090290669,14.87013338,174.33,174.27,9.13363338]
[1730090291254,14.87013338,174.33,174.28,9.13363338]
[1730090292277,5.7365,174.33,174.28,9.13363338]
[1730090294176,5.7359,174.34,174.3,9.13363338]
[1730090294354,9.13363338,174.37,174.32,9.13363338]
[1730090295375,14.86863338,174.37,174.32,9.13363338]
[1730090297058,49.510484,174.41,174.33,9.13363338]
[1730090297254,20.0,174.38,174.33,9.13363338]
[1730090297478,20.0,174.38,174.34,9.13363338]
[1730090298063,20.0,174.38,174.33,9.13363338]
[1730090299486,9.13363338,174.38,174.33,9.13363338]
[1730090299789,14.86823338,174.38,174.33,9.13363338]
[1730090301271,9.13363338,174.38,174.33,9.13363338]
[1730090303694,14.86823338,174.38,174.33,9.13363338]
[1730090305066,9.13363338,174.37,174.32,9.13363338]
[1730090305366,9.13363338,174.33,174.25,15.891]
[1730090305570,9.13363338,174.32,174.27,9.13363338]
[1730090305765,9.13363338,174.33,174.28,9.13363338]
[1730090306167,9.13363338,174.34,174.29,9.13363338]
[1730090306664,14.86963338,174.34,174.29,9.13363338]
[1730090306886,20.0,174.36,174.32,9.13363338]
[1730090307191,14.86823338,174.38,174.33,9.13363338]
[1730090308171,9.13363338,174.37,174.32,9.13363338]
[1730090311869,22.9483,174.42,174.32,9.13363338]
[1730090312077,9.13363338,174.38,174.32,9.13363338]
[1730090313291,9.13363338,174.37,174.32,9.13363338]
[1730090313603,5.7347,174.38,174.26,20.25098]
[1730090313604,9.13363338,174.34,174.26,20.25098]
[1730090313896,9.13363338,174.34,174.28,9.13363338]
[1730090314189,9.13363338,174.33,174.28,9.13363338]
[1730090314987,9.13363338,174.34,174.29,9.13363338]
[1730090315770,9.13363338,174.34,174.26,0.25098]
[1730090315977,9.13363338,174.33,174.28,9.13363338]
[1730090317382,14.86993338,174.33,174.27,9.13363338]
[1730090317696,14.86993338,174.33,174.26,0.12549]
[1730090317697,9.13363338,174.31,174.25,15.891]
[1730090317878,9.13363338,174.31,174.26,9.13363338]
[1730090318496,9.13363338,174.32,174.27,9.13363338]
[1730090318800,14.86993338,174.33,174.27,9.13363338]
[1730090318978,23.776884,174.34,174.3,9.13363338]
[1730090321099,38.64641738,174.34,174.28,9.13363338]
[1730090321403,38.64641738,174.34,174.26,0.12549]
[1730090321404,9.13363338,174.31,174.26,9.13363338]
[1730090322404,9.13363338,174.33,174.27,9.13363338]
[1730090322580,14.86993338,174.33,174.27,9.13363338]
[1730090323078,14.86993338,174.33,174.28,9.13363338]
[1730090323284,14.86993338,174.33,174.29,9.13363338]
[1730090323285,5.7363,174.33,174.29,9.13363338]
[1730090323489,5.7363,174.33,174.3,9.13363338]
[1730090323986,5.7363,174.33,174.29,9.13363338]
[1730090329384,20.0,174.36,174.31,9.13363338]
[1730090330492,23.776884,174.35,174.31,9.13363338]
[1730090332412,29.13363338,174.36,174.32,3.73442132]
[1730090332588,14.86853338,174.37,174.33,3.73442132]
[1730090332902,5.7349,174.37,174.34,1.43631589]
[1730090333119,5.7349,174.37,174.32,9.13363338]
[1730090334204,9.13363338,174.38,174.33,9.13363338]
[1730090334412,23.902374,174.42,174.34,9.13363338]
[1730090334587,23.776884,174.39,174.35,9.13363338]
[1730090334989,9.13363338,174.4,174.35,9.13363338]
[1730090335388,14.86723338,174.41,174.35,9.13363338]
[1730090336395,9.13363338,174.41,174.36,9.13363338]
[1730090340611,9.13363338,174.4,174.35,9.13363338]
[1730090340818,9.13363338,174.41,174.36,9.13363338]
[1730090340994,9.13363338,174.4,174.32,0.25098]
[1730090341196,9.13363338,174.4,174.35,9.13363338]
[1730090341406,9.13363338,174.4,174.36,3.733625]
[1730090341694,9.13363338,174.4,174.37,3.733625]
[1730090341909,9.13363338,174.41,174.36,9.13363338]
[1730090342108,9.13363338,174.41,174.38,1.43600885]
[1730090342302,9.13363338,174.41,174.36,9.13363338]
[1730090342491,9.13363338,174.41,174.37,3.73362621]
[1730090342686,9.13363338,174.41,174.38,1.43601008]
[1730090342919,9.13363338,174.41,174.36,9.13363338]
[1730090345019,9.13363338,174.4,174.35,9.13363338]
[1730090345397,32.91051738,174.41,174.36,9.13363338]
[1730090346311,28.13182037,174.44,174.36,9.13363338]
[1730090346500,34.86663338,174.43,174.38,9.13363338]
[1730090346995,5.7316,174.47,174.4,9.13363338]
[1730090347204,9.13363338,174.45,174.4,9.13363338]
[1730090347405,9.13363338,174.44,174.39,9.13363338]
[1730090348116,14.86623338,174.44,174.4,2.87197066]
[1730090348291,14.86623338,174.44,174.39,9.13363338]
[1730090348495,14.86623338,174.44,174.4,2.87197025]
[1730090348691,14.86623338,174.44,174.39,9.13363338]
[1730090348918,14.86623338,174.44,174.4,2.87193061]
[1730090349217,9.13363338,174.43,174.39,9.13363338]
[1730090349424,9.13363338,174.43,174.4,2.87193061]
[1730090349595,9.13363338,174.43,174.38,9.21081461]
[1730090349793,9.13363338,174.43,174.39,2.87193272]
[1730090350020,9.13363338,174.43,174.4,2.87193272]
[1730090350223,9.13363338,174.43,174.38,9.13363338]
[1730090351602,43.776884,174.46,174.39,9.13363338]
[1730090351804,9.13363338,174.44,174.39,9.13363338]
[1730090352616,9.13363338,174.43,174.38,9.13363338]
[1730090352918,5.7327,174.44,174.38,9.13363338]
[1730090353101,9.13363338,174.43,174.38,9.13363338]
[1730090354429,5.7327,174.44,174.38,9.13363338]
[1730090354634,9.13363338,174.43,174.38,9.13363338]
[1730090358230,9.13363338,174.4,174.31,15.4004]
[1730090358415,9.13363338,174.36,174.32,2.29756197]
[1730090358615,9.13363338,174.36,174.32,9.13363338]
[1730090359417,9.13363338,174.37,174.32,9.13363338]
[1730090359615,9.13363338,174.37,174.33,0.25098]
[1730090362040,9.13363338,174.35,174.31,15.4004]
[1730090362337,9.13363338,174.34,174.29,9.13363338]
[1730090362524,9.13363338,174.33,174.3,2.29778108]
[1730090362723,9.13363338,174.33,174.28,15.11013249]
[1730090362929,9.13363338,174.33,174.29,2.29779577]
[1730090363245,9.13363338,174.33,174.3,2.29779577]
[1730090363535,9.13363338,174.34,174.29,11.43144944]
[1730090363744,9.13363338,174.34,174.29,9.13363338]
[1730090363913,9.13363338,174.35,174.3,9.13363338]
[1730090364743,9.13363338,174.36,174.3,9.13363338]
[1730090365117,9.13363338,174.36,174.31,9.13363338]
[1730090365939,9.13363338,174.35,174.3,9.13363338]
[1730090366836,9.13363338,174.36,174.31,9.13363338]
[1730090367041,14.86853338,174.37,174.31,9.13363338]
[1730090367519,14.86853338,174.37,174.32,9.13363338]
[1730090370640,9.13363338,174.38,174.33,9.13363338]
[1730090371624,14.86823338,174.38,174.33,9.13363338]
[1730090372024,43.776884,174.41,174.35,9.13363338]
[1730090372229,20.0,174.4,174.36,9.13363338]
[1730090374328,29.13363338,174.4,174.35,9.13363338]
[1730090375241,21.545,174.43,174.37,9.13363338]
[1730090375431,21.545,174.43,174.38,9.13363338]
[1730090375432,43.776884,174.42,174.38,9.13363338]
[1730090376425,49.510284,174.42,174.38,9.13363338]
[1730090376934,58.64391738,174.42,174.37,9.13363338]
[1730090380550,9.13363338,174.41,174.36,9.13363338]
[1730090383932,9.13363338,174.41,174.37,9.13363338]
[1730090384235,14.86703338,174.42,174.37,9.13363338]
[1730090384427,9.13363338,174.43,174.38,9.13363338]
[1730090384629,14.86683338,174.43,174.38,9.13363338]
[1730090385539,14.86683338,174.43,174.35,0.25098]
[1730090385738,14.86683338,174.43,174.38,9.13363338]
[1730090386849,9.13363338,174.42,174.38,9.13363338]
[1730090387729,9.13363338,174.42,174.37,9.13363338]
[1730090390037,14.86673338,174.43,174.38,9.13363338]
[1730090391348,5.7331,174.43,174.39,9.13363338]
[1730090391651,9.13363338,174.44,174.39,9.13363338]
[1730090391867,38.64281738,174.45,174.4,9.13363338]
[1730090392941,9.13363338,174.44,174.39,9.13363338]
[1730090394052,14.86643338,174.44,174.39,9.13363338]
[1730090397752,5.7328,174.44,174.39,9.13363338]
[1730090397932,14.86643338,174.44,174.39,9.13363338]
[1730090400542,9.13363338,174.41,174.35,0.25098]
[1730090400864,9.13363338,174.41,174.36,9.13363338]
[1730090401040,9.13363338,174.4,174.34,15.513]
[1730090401239,9.13363338,174.39,174.34,24.64663338]
[1730090401657,9.13363338,174.4,174.35,9.13363338]
[1730090401851,43.776884,174.43,174.37,9.13363338]
[1730090402061,52.91051738,174.43,174.38,9.13363338]
[1730090402742,58.64371738,174.43,174.38,9.13363338]
[1730090403549,14.86683338,174.43,174.38,9.13363338]
[1730090403750,5.7332,174.43,174.39,9.13363338]
[1730090405138,14.86683338,174.43,174.38,9.13363338]
[1730090405959,14.86683338,174.43,174.37,9.13363338]
[1730090408859,9.13363338,174.44,174.38,9.13363338]
[1730090409054,43.776884,174.43,174.38,9.13363338]
[1730090409872,52.91051738,174.43,174.38,9.13363338]
[1730090410169,5.7332,174.42,174.38,9.13363338]
[1730090413162,5.7332,174.42,174.37,9.13363338]
[1730090414471,9.13363338,174.39,174.33,9.13363338]
[1730090414863,9.13363338,174.39,174.34,9.13363338]
[1730090415173,9.13363338,174.4,174.34,9.13363338]
[1730090415473,9.13363338,174.4,174.35,9.13363338]
[1730090415857,9.13363338,174.4,174.31,20.0]
[1730090416062,5.734,174.4,174.35,9.13363338]
[1730090417871,14.86763338,174.4,174.34,9.13363338]
[1730090418763,14.86763338,174.4,174.35,9.13363338]
[1730090419485,5.734,174.4,174.35,9.13363338]
[1730090419857,5.734,174.4,174.36,9.13363338]
[1730090420056,5.734,174.4,174.31,0.25098]
[1730090420057,6.4042,174.42,174.38,9.13363338]
[1730090421369,12.1375,174.42,174.38,9.13363338]
[1730090426381,12.1375,174.42,174.39,9.13363338]
[1730090427883,23.776884,174.42,174.39,9.13363338]
[1730090428069,23.776884,174.42,174.4,9.13363338]
[1730090428779,23.776884,174.42,174.39,9.13363338]
[1730090429489,23.776884,174.42,174.38,9.13363338]
[1730090429684,29.510084,174.42,174.38,9.13363338]
[1730090429986,29.510084,174.42,174.37,9.13363338]
[1730090430482,9.13363338,174.41,174.31,0.25098]
[1730090430683,32.91051738,174.4,174.35,9.13363338]
[1730090431091,23.776884,174.38,174.34,9.13363338]
[1730090432782,23.776884,174.38,174.35,9.13363338]
[1730090433164,23.776884,174.38,174.34,9.13363338]
[1730090433601,29.511584,174.38,174.34,9.13363338]
[1730090433881,23.776884,174.34,174.3,5.98433656]
[1730090434080,9.13363338,174.32,174.27,9.13363338]
[1730090434385,9.13363338,174.33,174.27,9.13363338]
[1730090434768,9.13363338,174.33,174.28,9.13363338]
[1730090435168,32.91051738,174.32,174.24,5.98586727]
[1730090435371,9.13363338,174.32,174.26,9.13363338]
[1730090435788,9.13363338,174.32,174.27,9.13363338]
[1730090436665,23.776884,174.32,174.28,9.13363338]
[1730090439391,29.513184,174.33,174.28,9.13363338]
[1730090440003,23.776884,174.34,174.31,9.13363338]
[1730090440175,23.776884,174.35,174.33,9.13363338]
[1730090440369,20.0,174.35,174.32,9.13363338]
[1730090441689,23.776884,174.34,174.32,9.13363338]
[1730090444798,23.776884,174.34,174.26,16.1011]
[1730090444982,23.776884,174.34,174.3,9.13363338]
[1730090445192,23.776884,174.34,174.31,9.13363338]
[1730090445686,23.776884,174.35,174.31,9.13363338]
[1730090446001,43.776884,174.37,174.33,9.13363338]
[1730090446501,43.776884,174.37,174.34,9.13363338]
[1730090448797,23.776884,174.39,174.36,9.13363338]
[1730090448981,20.0,174.38,174.36,9.13363338]
[1730090449302,20.0,174.38,174.35,9.13363338]
[1730090450682,23.776884,174.39,174.35,9.13363338]
[1730090452391,29.511084,174.39,174.27,20.25098]
[1730090452602,29.511084,174.39,174.35,9.13363338]
[1730090458491,29.511084,174.39,174.36,9.13363338]
[1730090459197,23.776884,174.39,174.36,9.13363338]
[1730090459410,23.776884,174.38,174.36,9.13363338]
[1730090460287,23.776884,174.38,174.35,9.13363338]
[1730090461103,23.776884,174.38,174.36,9.13363338]
[1730090461484,25.7336,174.41,174.37,9.13363338]
[1730090462398,34.86723338,174.41,174.36,9.13363338]
[1730090462804,20.0,174.39,174.36,9.13363338]
[1730090463012,20.0,174.39,174.32,0.12549]
[1730090463209,20.0,174.39,174.36,9.13363338]
[1730090463816,23.776884,174.4,174.36,9.13363338]
[1730090464623,23.776884,174.4,174.37,9.13363338]
[1730090465613,23.776884,174.4,174.38,9.13363338]
[1730090465815,23.776884,174.4,174.32,0.12549]
[1730090466027,29.510484,174.41,174.36,9.13363338]
[1730090466213,29.510484,174.41,174.37,9.13363338]
[1730090468227,29.510484,174.41,174.38,9.13363338]
[1730090468821,23.776884,174.41,174.38,9.13363338]
[1730090469018,5.7332,174.43,174.4,9.13363338]
[1730090469214,23.776884,174.42,174.4,9.13363338]
[1730090472025,23.776884,174.42,174.38,9.13363338]
[1730090472327,9.13363338,174.4,174.32,0.12549]
[1730090472521,32.91051738,174.39,174.33,9.13363338]
[1730090472721,32.91051738,174.39,174.34,9.13363338]
[1730090473403,38.64481738,174.39,174.34,9.13363338]
[1730090474627,29.511184,174.39,174.35,9.13363338]
[1730090476625,23.776884,174.4,174.35,9.13363338]
[1730090476827,32.91051738,174.4,174.35,9.13363338]
[1730090479231,38.64441738,174.4,174.35,9.13363338]
[1730090479836,38.64441738,174.4,174.31,16.0695]
[1730090479837,23.776884,174.4,174.36,9.13363338]
[1730090480129,5.733,174.43,174.38,9.13363338]
[1730090480336,5.733,174.43,174.39,9.13363338]
[1730090481106,5.733,174.43,174.38,9.13363338]
[1730090481303,23.776884,174.42,174.38,9.13363338]
[1730090485041,23.776884,174.42,174.34,0.12549]
[1730090485332,23.776884,174.42,174.31,16.0695]
[1730090485333,38.64381738,174.42,174.37,9.13363338]
[1730090485711,9.13363338,174.39,174.31,16.0695]
[1730090485906,9.13363338,174.39,174.34,9.13363338]
[1730090488509,5.7341,174.4,174.35,9.13363338]
[1730090488733,23.776884,174.39,174.35,9.13363338]
[1730090489945,23.776884,174.39,174.36,9.13363338]
[1730090490314,23.776884,174.39,174.37,9.13363338]
[1730090490520,9.13363338,174.44,174.38,9.13363338]
[1730090490927,9.13363338,174.44,174.39,9.13363338]
[1730090491132,9.13363338,174.44,174.38,9.13363338]
[1730090491333,9.13363338,174.43,174.38,9.13363338]
[1730090491537,5.7332,174.42,174.38,9.13363338]
[1730090491831,5.7332,174.42,174.37,9.13363338]
[1730090493447,5.7332,174.42,174.38,9.13363338]
[1730090494748,9.13363338,174.41,174.34,0.12549]
[1730090494936,9.13363338,174.39,174.33,9.13363338]
[1730090495941,9.13363338,174.39,174.34,9.13363338]
[1730090496950,49.510784,174.4,174.36,9.13363338]
[1730090499263,58.64441738,174.4,174.35,9.13363338]
[1730090499437,9.13363338,174.39,174.34,9.13363338]
[1730090500158,58.64441738,174.4,174.34,9.13363338]
[1730090500351,58.64441738,174.4,174.35,9.13363338]
[1730090500959,49.510784,174.4,174.35,9.13363338]
[1730090501156,49.510784,174.4,174.36,9.13363338]